Workbook

Sheet Title
A5: Estimating the impact of antiviral usage during 2009 influenza A (H1N1) pandemic:
G21: Date: March 1, 2011

Sheet Antivirals
G2: 2009 -2010 H1N1 ANTIVIRAL PRESCRIPTIONS (TRX)
A4: Step 1: calculating number of anti-viral prescriptions filled that were used to treat actual H1N1 patients
C6: Types of Antivirals+ | E6: Total H1N1 TRX* | F6: % reports covered | G6: TOTAL H1N1 TRX | H6: % for prophylaxsis | I6: Failed adherance or stockpiles | J6: TOTAL TRX Used
C8: TamiFlu | E8: 7966386 | F8: 1 | G8: =E8/F8 -> 7966386 | H8: 0.1 | I8: 0.2 | J8: =G8-((H8+I8)*G8) -> 5576470.2
C9: Relenza | E9: 211156 | F9: 1 | G9: =E9/F9 -> 211156 | H9: 0.1 | I9: 0.2 | J9: =G9-((H9+I9)*G9) -> 147809.2
C10: TOTALS | E10: =SUM(E8:E9) -> 8177542 | G10: =SUM(G8:G9) -> 8177542 | I10: 30 | J10: =SUM(J8:J9) -> 5724279.4
A13: '+Antivirals are precribed in a variety of forms (capsules, tablets, gel cap,syrup, inhaler,powder substance)
A14: *obtained from IMS Data for antiviral prescriptions from April 2009 - through March 2010
A15: **Total TRX used takes into consideration 10% reduction for prophylaxis and % reduction for inconcsistency
A16: Inconsistency could refer to non-compliance, incomplete usage, persons that were treated in hospital with other
A17: precribed medication, or persons that died before the antiviral could be used.

Sheet POP_ANTIVIRAL
B1: EST ANTIVIRAL PRESCRIPTIONS BY TYPE
A5: Step 2: calculating number of anti-viral prescriptions filled by age group
D7: H1N1 TRX by Age Group*
B8: Types of Antivirals+ | D8: 0-17 YRS | E8: 18-64 YRS | F8: 65+ YRS
B10: TamiFlu | D10: =Antivirals!J8*Scripts!K11 -> 2152915.333 | E10: =Antivirals!J8*Scripts!L11 -> 2979710.599 | F10: =Antivirals!J8*Scripts!M11 -> 297700.4232 | G10: =SUM(D10:F10) -> 5430326.356
B11: Relenza | D11: =Antivirals!J9*Scripts!K11 -> 57064.89619 | E11: =Antivirals!J9*Scripts!L11 -> 78979.8249 | F11: =Antivirals!J9*Scripts!M11 -> 7890.809027 | G11: 143935.5301
B12: SUBTOTALS | D12: =SUM(D10:D11) -> 2209980.229 | E12: =SUM(E10:E11) -> 3058690.424 | F12: =SUM(F10:F11) -> 305591.2322 | G12: =SUM(D12:F12) -> 5574261.886
A18: '+Antivirals are precribed in a variety of forms (capsules, tablets, gel cap,syrup, inhaler,powder substance)
A20: *H1N1 Trx derived from IMS Data for Tamiflu prescriptions during Weeks 39 - 10, see Scripts worksheet

Sheet Hospitalization_risk
C1: RISK OF HOSPITALIZATION BY AGE GROUP
A5: Step 3: calculating risk of hospitalization, before treatment, among those who filled a prescription for anti-viral drugs
C6: 0-17 | F6: 18-64 | I6: 65+
C7: lower | D7: Median | E7: high | F7: lower | G7: Median | H7: Higher | I7: lower | J7: Median | K7: High
C8: 0.00314 | D8: 0.0038 | E8: 0.00428 | F8: 0.0041 | G8: 0.00496 | H8: 0.00558 | I8: 0.01277 | J8: 0.0155 | K8: 0.0174
C10: H1N1 At-Risk Hospitalizing Age Group*
C11: 0-17 YRS | F11: 18-64 YRS | I11: 65+ YRS
C12: lower | D12: Median | E12: upper | F12: lower | G12: Median | H12: upper | I12: lower | J12: Median | K12: upper
A14: TOTAL ANTIVIRALS+ | C14: =POP_ANTIVIRAL!$D$12*Hospitalization_risk!C8 -> 6939.33792 | D14: =POP_ANTIVIRAL!$D$12*Hospitalization_risk!D8 -> 8397.924872 | E14: =POP_ANTIVIRAL!$D$12*Hospitalization_risk!E8 -> 9458.715382 | F14: =POP_ANTIVIRAL!$E$12*Hospitalization_risk!F8 -> 12540.63074 | G14: =POP_ANTIVIRAL!$E$12*Hospitalization_risk!G8 -> 15171.1045 | H14: =POP_ANTIVIRAL!$E$12*Hospitalization_risk!H8 -> 17067.49257 | I14: =POP_ANTIVIRAL!$F$12*Hospitalization_risk!I8 -> 3902.400036 | J14: =POP_ANTIVIRAL!$F$12*Hospitalization_risk!J8 -> 4736.664099 | K14: =POP_ANTIVIRAL!$F$12*Hospitalization_risk!K8 -> 5317.287441
A16: +Antiviral are prescribed in a variety of forms (capsules, tablets, gel cap,syrup, enhaler,powder substance)
A17: *H1N1 Trx derived from IMS Data for Tamiflu prescriptions during Weeks 39 - 10, see Scripts worksheet
A19: Risk of Hospitalization derived from Reed et. Al, Estimates of the Prevalence of Pandemic (H1N1) 2009, United States, April - July, 2009

Sheet Eff_Antiviral
C1: ANTIVIRAL EFFECTIVENESS BY AGE GROUP
A5: Step 4: Ranges of effectiveness of influenza anti-viral drugs in preventing hospitalizations, by age group
E7: EFFECTIVENESS BY AGE GROUP*
E8: 0-17 YRS | G8: 18-64 YRS | I8: 65+ YRS
E9: lower | F9: upper | G9: lower | H9: upper | I9: lower | J9: upper
C10: All Antiviral+ | E10: 0.22 | F10: 0.32 | G10: 0.34 | H10: 0.5 | I10: 0.3 | J10: 0.5
B12: +Antiviral are prescribed in a variety of forms (capsules, tablets, gel cap,syrup, enhaler,powder substance)
B15: *Review of published studies on effectiveness of anti-viral drugs are provided in Appendix C

Sheet Outcomes
D1: HEALTH OUTCOMES REDUCED DUE TO ANTIVIRAL USE
A5: STEP 5: RESULTS: REDUCED HOSPITALIZATIONS DUE TO ANTIVIRAL USE
B7: Hospitalizations averted due to use of influenza anti-viral drugs: April,2 009 - April 2010
D8: 0-17 YRS | H8: 18-64 YRS | L8: 65+ YRS | O8: Totals
D9: lower | E9: median | F9: upper | H9: lower | I9: median | J9: upper | L9: lower | M9: median | N9: upper | O9: lower | P9: median | Q9: upper
B11: Hospitalizations averted | D11: =Eff_Antiviral!$F$10*Hospitalization_risk!C14 -> 2220.588135 | E11: =Eff_Antiviral!$F$10*Hospitalization_risk!D14 -> 2687.335959 | F11: =Eff_Antiviral!$F$10*Hospitalization_risk!E14 -> 3026.788922 | H11: =Eff_Antiviral!$H$10*Hospitalization_risk!F14 -> 6270.31537 | I11: =Eff_Antiviral!$H$10*Hospitalization_risk!G14 -> 7585.552252 | J11: =Eff_Antiviral!$H$10*Hospitalization_risk!H14 -> 8533.746284 | L11: =Eff_Antiviral!$J$10*Hospitalization_risk!I14 -> 1951.200018 | M11: =Eff_Antiviral!$J$10*Hospitalization_risk!J14 -> 2368.33205 | N11: =Eff_Antiviral!$J$10*Hospitalization_risk!K14 -> 2658.64372 | O11: =D11+H11+L11 -> 10442.10352 | P11: =E11+I11+M11 -> 12641.22026 | Q11: =F11+J11+N11 -> 14219.17893
B14: HOSPITALIZATIONS: LOWER ESTIMATES OF EFFECTIVENESS, given Clinical Case of Flu
D15: 0-17 YRS | H15: 18-64 YRS | L15: 65+ YRS | O15: Totals
D16: lower | E16: median | F16: upper | H16: lower | I16: median | J16: upper | L16: lower | M16: median | N16: upper | O16: lower | P16: median | Q16: upper
B18: TOTAL ANTIVIRAL+ | D18: =Eff_Antiviral!$E$10*Hospitalization_risk!C14 -> 1526.654342 | E18: =Eff_Antiviral!$E$10*Hospitalization_risk!D14 -> 1847.543472 | F18: =Eff_Antiviral!$E$10*Hospitalization_risk!E14 -> 2080.917384 | H18: =Eff_Antiviral!$G$10*Hospitalization_risk!F14 -> 4263.814452 | I18: =Eff_Antiviral!$G$10*Hospitalization_risk!G14 -> 5158.175532 | J18: =Eff_Antiviral!$G$10*Hospitalization_risk!H14 -> 5802.947473 | L18: =Eff_Antiviral!$I$10*Hospitalization_risk!I14 -> 1170.720011 | M18: =Eff_Antiviral!$I$10*Hospitalization_risk!J14 -> 1420.99923 | N18: =Eff_Antiviral!$I$10*Hospitalization_risk!K14 -> 1595.186232 | O18: =D18+H18+L18 -> 6961.188805 | P18: =E18+I18+M18 -> 8426.718233 | Q18: =F18+J18+N18 -> 9479.051089
B19: We have not discounted cases that occur in the future. Most hospitalizations, and resolution of such hospitalizations occur within 1 year of pandemic.
F21: TOTALS: All ages
F22: Upper estimate | H22: Lower estimate
E23: Hospitalizations averted | F23: =E11+I11+M11 -> 12641.22026 | H23: =E18+I18+M18 -> 8426.718233
B25: +Antiviral are prescribed in a variety of forms (capsules, tablets, gel cap,syrup, enhaler,powder substance)

Sheet Sensitivity
D1: Data only page: Do not alter
D2: Step 6: Results: Example of Sensitivity analyses
F3: Median Hospitalizations averted | I3: Range of hospitalizations averted
B4: not H1N1 +ve | C4: Lost to Non-Comp | D4: TOTAL TRX Used | E4: Prescriptions used | F4: 0-17 | G4: 18-64 | H4: 65+ | I4: 0-17 | J4: 18-64 | K4: 65+
A5: BASE | B5: 0.1 | C5: 0.1 | D5: 9025712.877 | E5: 8518738.932 | F5: 12497.2046 | G5: 33619.0529 | H5: 7879.868557 | I5: (2,749 - 3,999) | J5: (11,430 - 16,810) | K5: (2,364 - 3,940)
B6: 0.1 | C6: 0.2 | D6: 7897498.767 | E6: 7420092.191 | F6: 10972.70563 | G6: 29549.84387 | H6: 6946.306287 | I6: (2,414 - 3,511) | J6: (10,047 - 14,775) | K6: (2,084 - 3,473)
B7: 0.2 | C7: 0.2 | D7: 6769284.658 | E7: 6321445.449 | F7: 9448.206654 | G7: 25480.63484 | H7: 6012.744017 | I7: (2,079 - 3,023) | J7: (8,663 - 12,740) | K7: (1,804 - 3,006)
B8: 0.2 | C8: 0.3 | D8: 5641070.548 | E8: 5222798.708 | F8: 7923.707681 | G8: 21411.42581 | H8: 5079.181747 | I8: (1,743 - 2,536) | J8: (7,280 - 10,706) | K8: (1,524 - 2.540)
B9: 0.3 | C9: 0.3 | D9: 4512856.438 | E9: 4124151.966 | F9: 6399.208708 | G9: 17342.21677 | H9: 4145.619478 | I9: (1,408 - 2,048) | J9: (5,896 - 8,671) | K9: (1,244 - 2,073)

Sheet Populaton
C2: Data for information and comparison purposes only
B3: POPULATION AFFECTED by H1N1
C7: AGE GROUP | E7: US POPULATION | G7: # of estimated H1N1 outcomes
G8: Hospitalizations | I8: Deaths | K8: Cases
C10: 0-17 YRS | E10: 74193570.42 | G10: 86813.97776 | I10: 1282.316922 | K10: 19501231.96
G11: 61783 | H11: 127548 | I11: 913 | J11: 1884 | K11: 13878406 | L11: 28651486
C13: 18-64 YRS | E13: 193591435.2 | G13: 159262.062 | I13: 9507.22372 | K13: 35178559.98
G14: 113342 | H14: 233990 | I14: 6766 | J14: 13968 | K14: 25035462 | L14: 51684839
C16: 65+ YRS | E16: 38827080.44 | G16: 26784.96025 | I16: 1592.677615 | K16: 5837878.303
G17: 19062 | H17: 39353 | I17: 1133 | J17: 2340 | K17: 4154632 | L17: 8577094
C19: TOTAL | E19: =SUM(E10,E13,E16) -> 306612086.1 | G19: =SUM(G10+G13+G16) -> 272861 | I19: =SUM(I10+I13+I16) -> 12382.21826 | K19: =SUM(K10+K13+K16) -> 60517670.24
G20: 194186 | H20: 400891 | I20: 8812 | J20: 18192 | K20: 43068500 | L20: 88913419 | Q20: 354031
Q21: 151379
Q22: 241382
Q23: 273518
Q24: 339795
Q25: 393740
Q26: 447171
Q27: 482549
Q28: 538580
Q29: 683787
Q30: 650193
Q31: 544119
Q32: 391432
Q33: 276131
Q34: 154339
Q35: 135780
Q36: 100913
Q37: 90056
Q38: 65817
Q39: 57578
Q40: 51651
Q41: 51307
Q42: 45827
Q43: 44805
Q44: 43685
Q45: 45060
Q46: 48374
Q47: 50158
Q48: 48755
Q49: 35454
Q50: 27115
Q51: =SUM(Q20:Q50) -> 6864481

Sheet Scripts
B1: Data only page: Do not alter
A3: Tamiflu Only Scripts
A4: Month | B4: 0-2 | C4: 3 - 9 | D4: 10 -18 | E4: 19 - 39 | F4: 40-59 | G4: 60-64 | H4: 65+ | I4: Unknown | J4: Total | K4: %Child | L4: %Working | M4: %Senior | N4: %UNK
A5: October | B5: 73000 | C5: 278000 | D5: 623000 | E5: 607000 | F5: 473000 | G5: 59000 | H5: 100000 | I5: 61000 | J5: =SUM(B5:I5) -> 2274000 | K5: =SUM(B5:D5)/J5 -> 0.4283201407 | L5: =(E5+F5+G5)/J5 -> 0.5008795075 | M5: =H5/J5 -> 0.04397537379 | N5: =I5/J5 -> 0.02682497801
A6: November | B6: 35000 | C6: 111000 | D6: 250000 | E6: 350000 | F6: 282000 | G6: 38000 | H6: 68000 | I6: 35000 | J6: 1169000 | K6: 0.3387510693 | L6: =(E6+F6+G6)/J6 -> 0.5731394354 | M6: =H6/J6 -> 0.05816937553 | N6: =I6/J6 -> 0.02994011976
A7: December | B7: 4000 | C7: 8000 | D7: 15000 | E7: 28000 | F7: 26000 | G7: 4000 | H7: 8000 | I7: 2000 | J7: 95000 | K7: 0.2842105263 | L7: 0.6105263158 | M7: 0.08421052632 | N7: 0.02105263158
A8: January | B8: 13000 | C8: 29000 | D8: 31000 | E8: 71000 | F8: 68000 | G8: 12000 | H8: 23000 | I8: 5000 | J8: 252000 | K8: 0.2896825397 | L8: 0.5992063492 | M8: 0.09126984127 | N8: 0.01984126984
A9: February | B9: 9000 | C9: 28000 | D9: 25000 | E9: 48000 | F9: 43000 | G9: 8000 | H9: 12000 | I9: 4000 | J9: 177000 | K9: 0.3502824859 | L9: 0.5593220339 | M9: 0.06779661017 | N9: 0.02259887006
A10: March | B10: 9000 | C10: 26000 | D10: 24000 | E10: 42000 | F10: 37000 | G10: 6000 | H10: 9000 | I10: 1000 | J10: 154000 | K10: 0.3831168831 | L10: 0.5519480519 | M10: 0.05844155844 | N10: 0.006493506494
A11: Total | B11: =SUM(B5:B10) -> 143000 | C11: =SUM(C5:C10) -> 480000 | D11: 968000 | E11: 1146000 | F11: 929000 | G11: 127000 | H11: 220000 | I11: 108000 | J11: 4121000 | K11: 0.3860713419 | L11: =(E11+F11+G11)/J11 -> 0.5343363261 | M11: =H11/J11 -> 0.0533851007 | N11: =I11/J11 -> 0.02620723125 | O11: =SUM(K11:N11) -> 1
A15: Weekly Reports of Trx by Age Group using Tamiflu %
A16: Tamiflu | B16: 0-17 | C16: 18-64 | D16: 65+ | E16: UNK | F16: Total
A17: October | B17: =F17*$K$5 -> 1066401.932 | C17: =F17*L5 -> 1247055.237 | D17: =F17*M5 -> 109486.8514 | E17: =$F$17*N5 -> 66786.97933 | F17: =SUM([1]Tamiflu!$C$90:$C$109) -> 2489731
A18: November | B18: =F18*K6 -> 622735.9145 | C18: =F18*L6 -> 1053618.845 | D18: =F18*M6 -> 106934.45 | E18: =$F$18*N6 -> 55039.79042 | F18: =SUM([1]Tamiflu!$C$74:$C$89) -> 1838329
A19: December | B19: =$F$19*K7 -> 134932.6421 | C19: =$F$19*L7 -> 289855.3053 | D19: =$F$19*M7 -> 39980.04211 | E19: =$F$19*N7 -> 9995.010526 | F19: =SUM([1]Tamiflu!$C$58:$C$73) -> 474763
A20: January | B20: =$F$20*K8 -> 94047.75397 | C20: =$F$20*L8 -> 194537.1349 | D20: =$F$20*M8 -> 29631.48413 | E20: =$F$20*N8 -> 6441.626984 | F20: =SUM([1]Tamiflu!$C$34:$C$57) -> 324658
A21: February | B21: =$F$21*K9 -> 62065.15254 | C21: =$F$21*L9 -> 99104.0339 | D21: =$F$21*M9 -> 12012.61017 | E21: =$F$21*N9 -> 4004.20339 | F21: =SUM([1]Tamiflu!$C$18:$C$33) -> 177186
A22: March | B22: =$F$22*K10 -> 55633.93506 | C22: =$F$22*L10 -> 80150.58442 | D22: =$F$22*M10 -> 8486.532468 | E22: =$F$22*N10 -> 942.9480519 | F22: =SUM([1]Tamiflu!$C$2:$C$16) -> 145214
A23: Total | B23: =SUM(B17:B22) -> 2035817.33 | C23: =SUM(C17:C22) -> 2964321.141 | D23: 306531.9702 | E23: =SUM(E17:E22) -> 143210.5587 | F23: =SUM(F17:F22) -> 5449881
A25: Relenza | B25: 0-17 | C25: 18-64 | D25: 65+ | E25: UNK | F25: Total
A26: October | B26: =$F$26*K5 -> 24027.04661 | C26: =$F$26*L5 -> 28097.33685 | D26: =$F$26*M5 -> 2466.842568 | E26: =$F$26*N5 -> 1504.773967 | F26: =SUM([1]Relenza!$C$24:$C$28) -> 56096
A27: November | B27: =$F$27*K6 -> 7976.232678 | C27: =$F$27*L6 -> 13495.14115 | D27: =$F$27*M6 -> 1369.656116 | E27: =$F$27*N6 -> 704.9700599 | F27: =SUM([1]Relenza!$C$20:$C$23) -> 23546
A28: December | B28: =$F$28*K7 -> 1797.631579 | C28: =$F$28*L7 -> 3861.578947 | D28: =$F$28*M7 -> 532.6315789 | E28: =$F$28*N7 -> 133.1578947 | F28: =SUM([1]Relenza!$C$16:$C$19) -> 6325
A29: January | B29: =$F$29*K8 -> 1732.880952 | C29: =$F$29*L8 -> 3584.452381 | D29: =$F$29*M8 -> 545.9761905 | E29: =$F$29*N8 -> 118.6904762 | F29: =SUM([1]Relenza!$C$10:$C$15) -> 5982
A30: February | B30: =$F$30*K9 -> 1813.412429 | C30: =$F$30*L9 -> 2895.610169 | D30: =$F$30*M9 -> 350.9830508 | E30: =$F$30*N9 -> 116.9943503 | F30: =SUM([1]Relenza!$C$6:$C$9) -> 5177
A31: March | B31: =$F$31*K10 -> 1859.649351 | C31: =$F$31*L10 -> 2679.155844 | D31: =$F$31*M10 -> 283.6753247 | E31: =$F$31*N10 -> 31.51948052 | F31: =SUM([1]Relenza!$C$2:$C$5) -> 4854
A32: Total | B32: =SUM(B26:B31) -> 39206.8536 | C32: =SUM(C26:C31) -> 54613.27534 | D32: 5549.764829 | E32: 2610.106228 | F32: =SUM(F26:F31) -> 101980
A34: Symmetrel | B34: 0-17 | C34: 18-64 | D34: 65+ | E34: UNK | F34: Total
A35: October | B35: =$F$35*K5 -> 8211.325418 | C35: =$F$35*L5 -> 9602.361038 | D35: =$F$35*M5 -> 843.0518909 | E35: =$F$35*N5 -> 514.2616535 | F35: =SUM([1]Amantadine!$C$266:$C$278) -> 19171
A36: November | B36: =$F$36*K6 -> 24035.40462 | C36: =$F$36*L6 -> 40665.96236 | D36: =$F$36*M6 -> 4127.291702 | E36: =$F$36*N6 -> 2124.341317 | F36: =SUM([1]Amantadine!$C$217:$C$265) -> 70953
A37: December | B37: =$F$37*K7 -> 17812.89474 | C37: =$F$37*L7 -> 38264.73684 | D37: =$F$37*M7 -> 5277.894737 | E37: =$F$37*N7 -> 1319.473684 | F37: =SUM([1]Amantadine!$C$172:$C$216) -> 62675
A38: January | B38: =$F$38*K8 -> 25977.28175 | C38: =$F$38*L8 -> 53733.82937 | D38: =$F$38*M8 -> 8184.623016 | E38: =$F$38*N8 -> 1779.265873 | F38: =SUM([1]Amantadine!$C$97:$C$171) -> 89675
A39: February | B39: =$F$39*K9 -> 21269.50282 | C39: =$F$39*L9 -> 33962.59322 | D39: =$F$39*M9 -> 4116.677966 | E39: =$F$39*N9 -> 1372.225989 | F39: =SUM([1]Amantadine!$C$50:$C$96) -> 60721
A40: March | B40: =$F$40*K10 -> 23247.53247 | C40: =$F$40*L10 -> 33492.20779 | D40: =$F$40*M10 -> 3546.233766 | E40: =$F$40*N10 -> 394.025974 | F40: =SUM([1]Amantadine!$C$2:$C$49) -> 60680
A41: Total | B41: =SUM(B35:B40) -> 120553.9418 | C41: =SUM(C35:C40) -> 209721.6906 | D41: 26095.77308 | E41: 7503.594491 | F41: =SUM(F35:F40) -> 363875
A43: Flumadine | B43: 0-17 | C43: 18-64 | D43: 65+ | E43: UNK | F43: Total
A44: October | B44: =$F$44*K5 -> 3272.794195 | C44: =$F$44*L5 -> 3827.220317 | D44: =$F$44*M5 -> 336.0158311 | E44: =$F$44*N5 -> 204.969657 | F44: =SUM([1]Rimantadine!$C$68:$C$83) -> 7641
A45: November | B45: =$F$45*K6 -> 1135.154833 | C45: =$F$45*L6 -> 1920.590248 | D45: =$F$45*M6 -> 194.9255774 | E45: =$F$45*N6 -> 100.3293413 | F45: =SUM([1]Rimantadine!$C$56:$C$67) -> 3351
A46: December | B46: =$F$46*K7 -> 482.8736842 | C46: =$F$46*L7 -> 1037.284211 | D46: =$F$46*M7 -> 143.0736842 | E46: =$F$46*N7 -> 35.76842105 | F46: =SUM([1]Rimantadine!$C$44:$C$55) -> 1699
A47: January | B47: =$F$47*K8 -> 539.6785714 | C47: =$F$47*L8 -> 1116.321429 | D47: =$F$47*M8 -> 170.0357143 | E47: =$F$47*N8 -> 36.96428571 | F47: =SUM([1]Rimantadine!$C$26:$C$43) -> 1863
A48: February | B48: =$F$48*K9 -> 408.079096 | C48: =$F$48*L9 -> 651.6101695 | D48: =$F$48*M9 -> 78.98305085 | E48: =$F$48*N9 -> 26.32768362 | F48: =SUM([1]Rimantadine!$C$14:$C$25) -> 1165
A49: March | B49: =$F$49*K10 -> 430.2402597 | C49: =$F$49*L10 -> 619.8376623 | D49: =$F$49*M10 -> 65.62987013 | E49: =$F$49*N10 -> 7.292207792 | F49: =SUM([1]Rimantadine!$C$2:$C$13) -> 1123
A50: Total | B50: =SUM(B44:B49) -> 6268.82064 | C50: =SUM(C44:C49) -> 9172.864036 | D50: 988.663728 | E50: 411.6515965 | F50: 16842
